[Event "Late-Titled-Tuesday-Blitz-October-03-2023"]
[Site "Chess.com"]
[Date "2023.10.03"]
[Round "6"]
[White "OparinGrigoriy"]
[Black "kuli4ik"]
[Result "1-0"]
[WhiteElo "3009"]
[BlackElo "2930"]
[TimeControl "180+1"]
[EndTime "15:04:42 PDT"]
[Termination "OparinGrigoriy won on time"]

1. c4 {[%clk 0:03:00.9]} 1... g6 {[%clk 0:02:58]} 2. Nc3 {[%clk 0:03:00.6]} 2...
Bg7 {[%clk 0:02:58.5]} 3. d4 {[%clk 0:03:01]} 3... d6 {[%clk 0:02:59]} 4. e4
{[%clk 0:03:01.5]} 4... e5 {[%clk 0:02:59.4]} 5. d5 {[%clk 0:03:01.4]} 5... a5
{[%clk 0:02:58.7]} 6. Bd3 {[%clk 0:02:56.7]} 6... Na6 {[%clk 0:02:58.9]} 7. Nge2
{[%clk 0:02:52.7]} 7... Nc5 {[%clk 0:02:57.5]} 8. Bc2 {[%clk 0:02:53.1]} 8...
Bh6 {[%clk 0:02:57.6]} 9. Bxh6 {[%clk 0:02:50.7]} 9... Nxh6 {[%clk 0:02:58.5]}
10. Qd2 {[%clk 0:02:51.4]} 10... Ng4 {[%clk 0:02:55.2]} 11. f3 {[%clk
0:02:48.6]} 11... Nf6 {[%clk 0:02:52.7]} 12. O-O-O {[%clk 0:02:45.7]} 12... Bd7
{[%clk 0:02:51.8]} 13. g4 {[%clk 0:02:39.4]} 13... Qb8 {[%clk 0:02:35.3]} 14. g5
{[%clk 0:02:30.6]} 14... Nh5 {[%clk 0:02:34.2]} 15. f4 {[%clk 0:02:31.3]} 15...
O-O {[%clk 0:02:15.5]} 16. fxe5 {[%clk 0:02:15.7]} 16... dxe5 {[%clk 0:02:15.3]}
17. Qe3 {[%clk 0:02:16.3]} 17... Qa7 {[%clk 0:02:14.8]} 18. Kb1 {[%clk
0:02:14.9]} 18... Qb6 {[%clk 0:02:04]} 19. d6 {[%clk 0:02:06.3]} 19... c6 {[%clk
0:01:42.6]} 20. Ng3 {[%clk 0:01:25]} 20... Nf4 {[%clk 0:01:41.8]} 21. Nce2
{[%clk 0:01:25.5]} 21... Bg4 {[%clk 0:01:31.5]} 22. Nxf4 {[%clk 0:01:25.3]}
22... exf4 {[%clk 0:01:31.1]} 23. Qxf4 {[%clk 0:01:26.2]} 23... Bxd1 {[%clk
0:01:31.1]} 24. Rxd1 {[%clk 0:01:27.1]} 24... Ne6 {[%clk 0:01:24.2]} 25. Qd2
{[%clk 0:01:02.3]} 25... Qc5 {[%clk 0:01:16.7]} 26. h4 {[%clk 0:01:02.8]} 26...
Qe5 {[%clk 0:01:04]} 27. Nf1 {[%clk 0:00:52.4]} 27... Rad8 {[%clk 0:00:57.9]}
28. Ne3 {[%clk 0:00:52.1]} 28... Qf4 {[%clk 0:00:55.2]} 29. e5 {[%clk
0:00:48.1]} 29... Qxh4 {[%clk 0:00:25.7]} 30. Rg1 {[%clk 0:00:42.5]} 30... Qf4
{[%clk 0:00:21.2]} 31. Qc3 {[%clk 0:00:37.8]} 31... Qd4 {[%clk 0:00:11.4]} 32.
Qxd4 {[%clk 0:00:35.7]} 32... Nxd4 {[%clk 0:00:12.3]} 33. Ng4 {[%clk 0:00:36.4]}
33... Nf3 {[%clk 0:00:10]} 34. Rg3 {[%clk 0:00:32.8]} 34... Nd2+ {[%clk
0:00:08.5]} 35. Kc1 {[%clk 0:00:25]} 35... Nxc4 {[%clk 0:00:09.4]} 36. Bb3
{[%clk 0:00:19.6]} 36... Nxd6 {[%clk 0:00:04.1]} 37. exd6 {[%clk 0:00:18.6]}
37... Rxd6 {[%clk 0:00:05]} 38. Nf6+ {[%clk 0:00:19.1]} 38... Kg7 {[%clk
0:00:05]} 39. Rh3 {[%clk 0:00:19.8]} 39... h5 {[%clk 0:00:05]} 40. Re3 {[%clk
0:00:14.1]} 40... Rxf6 {[%clk 0:00:05.1]} 41. gxf6+ {[%clk 0:00:14.2]} 41...
Kxf6 {[%clk 0:00:06]} 42. Rf3+ {[%clk 0:00:14.9]} 42... Kg7 {[%clk 0:00:05.8]}
43. Kd2 {[%clk 0:00:15.5]} 43... Rd8+ {[%clk 0:00:05.6]} 44. Ke3 {[%clk
0:00:15.8]} 44... f5 {[%clk 0:00:06.5]} 45. Rf1 {[%clk 0:00:13.2]} 45... Kf6
{[%clk 0:00:06.6]} 46. Rh1 {[%clk 0:00:13.6]} 46... b5 {[%clk 0:00:05.3]} 47. a4
{[%clk 0:00:13.4]} 47... Rd6 {[%clk 0:00:04.7]} 48. Ra1 {[%clk 0:00:09]} 48...
b4 {[%clk 0:00:03.1]} 49. Rh1 {[%clk 0:00:08.2]} 49... Rd7 {[%clk 0:00:02.4]}
50. Rc1 {[%clk 0:00:08]} 1-0

[Event "Late-Titled-Tuesday-Blitz-October-03-2023"]
[Site "Chess.com"]
[Date "2023.10.03"]
[Round "6"]
[White "I_am_Javi"]
[Black "HamedWafa4"]
[Result "1/2-1/2"]
[WhiteElo "2744"]
[BlackElo "2634"]
[TimeControl "180+1"]
[EndTime "15:04:46 PDT"]
[Termination "Game drawn - insufficient material"]

1. e4 {[%clk 0:03:00.9]} 1... e5 {[%clk 0:02:59.3]} 2. Nf3 {[%clk 0:02:59.9]}
2... Nc6 {[%clk 0:02:59.1]} 3. d4 {[%clk 0:03:00.3]} 3... exd4 {[%clk
0:02:59.3]} 4. Bc4 {[%clk 0:03:00.8]} 4... Nf6 {[%clk 0:02:59.3]} 5. O-O {[%clk
0:03:00.5]} 5... Nxe4 {[%clk 0:02:59.5]} 6. Re1 {[%clk 0:03:00.7]} 6... d5
{[%clk 0:02:59.8]} 7. Bxd5 {[%clk 0:03:01.4]} 7... Qxd5 {[%clk 0:03:00.7]} 8.
Nc3 {[%clk 0:03:02.2]} 8... Qa5 {[%clk 0:03:01.2]} 9. Nxe4 {[%clk 0:03:03.1]}
9... Be6 {[%clk 0:03:01.7]} 10. Bd2 {[%clk 0:03:04]} 10... Qd5 {[%clk
0:02:53.5]} 11. Bg5 {[%clk 0:03:04]} 11... Bd6 {[%clk 0:02:46.6]} 12. Bf6 {[%clk
0:02:15.4]} 12... O-O {[%clk 0:02:34.3]} 13. Nxd4 {[%clk 0:02:13.6]} 13... Nxd4
{[%clk 0:02:33.9]} 14. Bxd4 {[%clk 0:02:14.5]} 14... Rad8 {[%clk 0:02:30.5]} 15.
Bc3 {[%clk 0:01:17.8]} 15... Qxd1 {[%clk 0:02:21.6]} 16. Raxd1 {[%clk
0:01:18.7]} 16... Be7 {[%clk 0:02:20.3]} 17. f3 {[%clk 0:01:17.1]} 17... b6
{[%clk 0:02:19.2]} 18. Kf2 {[%clk 0:01:16.6]} 18... Rxd1 {[%clk 0:02:18.2]} 19.
Rxd1 {[%clk 0:01:17.5]} 19... Rd8 {[%clk 0:02:18.9]} 20. Rxd8+ {[%clk
0:01:17.7]} 20... Bxd8 {[%clk 0:02:19.8]} 21. b3 {[%clk 0:01:17.9]} 21... f6
{[%clk 0:02:18.7]} 22. a4 {[%clk 0:01:17.5]} 22... Kf7 {[%clk 0:02:12.9]} 23.
Ke3 {[%clk 0:01:17.6]} 23... f5 {[%clk 0:02:11.7]} 24. Nf2 {[%clk 0:01:16]}
24... g5 {[%clk 0:02:09.6]} 25. f4 {[%clk 0:01:13]} 25... Bd5 {[%clk 0:02:06]}
26. g3 {[%clk 0:01:12.7]} 26... Ke6 {[%clk 0:02:03.4]} 27. Be5 {[%clk
0:01:12.4]} 27... c6 {[%clk 0:01:54.2]} 28. c4 {[%clk 0:00:57.5]} 28... Bg2
{[%clk 0:01:52.2]} 29. Nd3 {[%clk 0:00:57.2]} 29... h5 {[%clk 0:01:43.5]} 30. a5
{[%clk 0:00:42.1]} 30... bxa5 {[%clk 0:01:37.9]} 31. Nc5+ {[%clk 0:00:38.1]}
31... Kf7 {[%clk 0:01:38.3]} 32. Nb7 {[%clk 0:00:37.7]} 32... gxf4+ {[%clk
0:01:30]} 33. Bxf4 {[%clk 0:00:34.7]} 33... Be7 {[%clk 0:01:18.2]} 34. Kd4
{[%clk 0:00:25.8]} 34... Bf3 {[%clk 0:01:13.2]} 35. Nxa5 {[%clk 0:00:18.4]}
35... c5+ {[%clk 0:01:10.6]} 36. Ke3 {[%clk 0:00:15.4]} 36... Bh1 {[%clk
0:01:09.8]} 37. Bc7 {[%clk 0:00:12.4]} 37... Ke8 {[%clk 0:01:08.7]} 38. Ke2
{[%clk 0:00:08.8]} 38... Kd7 {[%clk 0:01:08.5]} 39. Bf4 {[%clk 0:00:09.4]} 39...
Bd8 {[%clk 0:01:08.5]} 40. Bd2 {[%clk 0:00:10.1]} 40... h4 {[%clk 0:01:04.6]}
41. gxh4 {[%clk 0:00:08.6]} 41... Bxh4 {[%clk 0:01:04.7]} 42. b4 {[%clk
0:00:08.9]} 42... cxb4 {[%clk 0:01:00.9]} 43. Bxb4 {[%clk 0:00:09.8]} 43... f4
{[%clk 0:00:56.4]} 44. Bc5 {[%clk 0:00:09.1]} 44... a6 {[%clk 0:00:53.9]} 45.
Bf2 {[%clk 0:00:05.7]} 45... Bd8 {[%clk 0:00:51]} 46. Nb3 {[%clk 0:00:04.9]}
46... a5 {[%clk 0:00:51.6]} 47. h4 {[%clk 0:00:04]} 47... a4 {[%clk 0:00:51.5]}
48. Nc5+ {[%clk 0:00:04.6]} 48... Kd6 {[%clk 0:00:49.6]} 49. Nxa4 {[%clk
0:00:05.5]} 49... Ke5 {[%clk 0:00:50.2]} 50. Nc3 {[%clk 0:00:03.3]} 50... Kf5
{[%clk 0:00:49.5]} 51. Nd5 {[%clk 0:00:02.9]} 51... Kg4 {[%clk 0:00:46.6]} 52.
Nc3 {[%clk 0:00:02.7]} 52... Bf3+ {[%clk 0:00:46.2]} 53. Kd3 {[%clk 0:00:02.6]}
53... Bxh4 {[%clk 0:00:43.5]} 54. Bxh4 {[%clk 0:00:03.5]} 54... Kxh4 {[%clk
0:00:44.4]} 55. Nd5 {[%clk 0:00:04.1]} 55... Bxd5 {[%clk 0:00:38.7]} 56. cxd5
{[%clk 0:00:05]} 56... f3 {[%clk 0:00:37.8]} 57. d6 {[%clk 0:00:05]} 57... Kg3
{[%clk 0:00:37.6]} 58. d7 {[%clk 0:00:05.1]} 58... f2 {[%clk 0:00:38.2]} 59.
d8=Q {[%clk 0:00:02.4]} 59... f1=Q+ {[%clk 0:00:38]} 60. Kc2 {[%clk 0:00:03.3]}
60... Qf2+ {[%clk 0:00:38.1]} 61. Qd2 {[%clk 0:00:02.9]} 61... Qc5+ {[%clk
0:00:37.5]} 62. Qc3+ {[%clk 0:00:03.3]} 62... Qxc3+ {[%clk 0:00:37.8]} 63. Kxc3
{[%clk 0:00:04.2]} 1/2-1/2

[Event "Late-Titled-Tuesday-Blitz-October-03-2023"]
[Site "Chess.com"]
[Date "2023.10.03"]
[Round "6"]
[White "tdf98pantani"]
[Black "alexrustemov"]
[Result "1-0"]
[WhiteElo "2700"]
[BlackElo "2816"]
[TimeControl "180+1"]
[EndTime "15:04:50 PDT"]
[Termination "tdf98pantani won on time"]

1. Nf3 {[%clk 0:03:00.9]} 1... d5 {[%clk 0:02:59.8]} 2. e3 {[%clk 0:03:00.4]}
2... c6 {[%clk 0:02:59.8]} 3. c4 {[%clk 0:03:00.4]} 3... Nf6 {[%clk 0:03:00.1]}
4. b3 {[%clk 0:02:59.4]} 4... Bf5 {[%clk 0:03:00.3]} 5. Bb2 {[%clk 0:02:58.9]}
5... h6 {[%clk 0:02:59.9]} 6. Nc3 {[%clk 0:02:55]} 6... e6 {[%clk 0:02:59.9]} 7.
Be2 {[%clk 0:02:54]} 7... Nbd7 {[%clk 0:02:59.7]} 8. O-O {[%clk 0:02:53.8]} 8...
Bd6 {[%clk 0:02:58.1]} 9. d3 {[%clk 0:02:43]} 9... Bh7 {[%clk 0:02:57.3]} 10. a3
{[%clk 0:02:41.5]} 10... a5 {[%clk 0:02:56.3]} 11. g3 {[%clk 0:02:30.3]} 11...
Qe7 {[%clk 0:02:53.4]} 12. Re1 {[%clk 0:02:27.2]} 12... O-O {[%clk 0:02:52.4]}
13. Bf1 {[%clk 0:02:27.1]} 13... Rfd8 {[%clk 0:02:51.5]} 14. Qc2 {[%clk
0:02:07.8]} 14... e5 {[%clk 0:02:46.4]} 15. cxd5 {[%clk 0:02:03.8]} 15... cxd5
{[%clk 0:02:46.3]} 16. Nb5 {[%clk 0:02:04]} 16... Rac8 {[%clk 0:02:36.2]} 17.
Qd2 {[%clk 0:02:02.3]} 17... b6 {[%clk 0:02:07]} 18. Nxd6 {[%clk 0:01:59.6]}
18... Qxd6 {[%clk 0:02:07.5]} 19. Rac1 {[%clk 0:01:55.4]} 19... Bf5 {[%clk
0:02:00.1]} 20. d4 {[%clk 0:01:51.4]} 20... Ne4 {[%clk 0:01:54.2]} 21. Qe2
{[%clk 0:01:50.7]} 21... Bg4 {[%clk 0:01:49.9]} 22. dxe5 {[%clk 0:01:39.5]}
22... Qe7 {[%clk 0:01:41.7]} 23. h3 {[%clk 0:01:36.5]} 23... Bxf3 {[%clk
0:01:39.2]} 24. Qxf3 {[%clk 0:01:37.4]} 24... Nxe5 {[%clk 0:01:37.4]} 25. Qf5
{[%clk 0:01:35.6]} 25... Rxc1 {[%clk 0:01:28.2]} 26. Rxc1 {[%clk 0:01:35.1]}
26... f6 {[%clk 0:01:19.5]} 27. Rc8 {[%clk 0:01:07.9]} 27... Rxc8 {[%clk
0:01:07.8]} 28. Qxc8+ {[%clk 0:01:07.8]} 28... Kf7 {[%clk 0:01:08.3]} 29. Bxe5
{[%clk 0:00:55.7]} 29... fxe5 {[%clk 0:01:07.2]} 30. Bb5 {[%clk 0:00:40.1]}
30... Nf6 {[%clk 0:01:03]} 31. Qc6 {[%clk 0:00:38.7]} 31... Qc5 {[%clk
0:00:57.7]} 32. Qxc5 {[%clk 0:00:16.5]} 32... bxc5 {[%clk 0:00:57.8]} 33. f3
{[%clk 0:00:16]} 33... g5 {[%clk 0:00:51]} 34. Kf2 {[%clk 0:00:15.7]} 34... Ke6
{[%clk 0:00:50.8]} 35. Ke2 {[%clk 0:00:15.3]} 35... Nh5 {[%clk 0:00:43.6]} 36.
Kf2 {[%clk 0:00:13.9]} 36... Kd6 {[%clk 0:00:40.3]} 37. h4 {[%clk 0:00:14.1]}
37... gxh4 {[%clk 0:00:28.5]} 38. gxh4 {[%clk 0:00:15]} 38... Ng7 {[%clk
0:00:29.1]} 39. Bd3 {[%clk 0:00:13.8]} 39... Ke6 {[%clk 0:00:25.7]} 40. Kg3
{[%clk 0:00:14.1]} 40... Kf6 {[%clk 0:00:25.5]} 41. Kg4 {[%clk 0:00:14.5]} 41...
Ne6 {[%clk 0:00:17.2]} 42. Kh5 {[%clk 0:00:13.4]} 42... d4 {[%clk 0:00:17.2]}
43. exd4 {[%clk 0:00:05.9]} 43... Nf4+ {[%clk 0:00:17]} 44. Kxh6 {[%clk
0:00:06.3]} 44... Nxd3 {[%clk 0:00:17.2]} 45. dxc5 {[%clk 0:00:05.8]} 45... Nxc5
{[%clk 0:00:10.5]} 46. b4 {[%clk 0:00:06.4]} 46... axb4 {[%clk 0:00:10.3]} 47.
axb4 {[%clk 0:00:07.3]} 47... Ne6 {[%clk 0:00:09.1]} 48. h5 {[%clk 0:00:06.9]}
48... Nd4 {[%clk 0:00:09.1]} 49. Kh7 {[%clk 0:00:06.7]} 49... Kf7 {[%clk
0:00:07.6]} 50. h6 {[%clk 0:00:03.5]} 50... Nxf3 {[%clk 0:00:07.9]} 51. b5
{[%clk 0:00:03.3]} 51... Ng5+ {[%clk 0:00:05.5]} 52. Kh8 {[%clk 0:00:03.2]}
52... Ne6 {[%clk 0:00:01.5]} 53. b6 {[%clk 0:00:03.6]} 53... Nc5 {[%clk
0:00:01.5]} 54. h7 {[%clk 0:00:03.7]} 1-0

[Event "Late-Titled-Tuesday-Blitz-October-03-2023"]
[Site "Chess.com"]
[Date "2023.10.03"]
[Round "6"]
[White "Denis_Makhnyov"]
[Black "Jospem"]
[Result "1-0"]
[WhiteElo "2954"]
[BlackElo "3045"]
[TimeControl "180+1"]
[EndTime "15:04:52 PDT"]
[Termination "Denis_Makhnyov won on time"]

1. d4 {[%clk 0:03:00.9]} 1... Nf6 {[%clk 0:02:56.9]} 2. c4 {[%clk 0:03:01.1]}
2... e6 {[%clk 0:02:57.6]} 3. Nf3 {[%clk 0:03:01.4]} 3... Bb4+ {[%clk
0:02:58.2]} 4. Bd2 {[%clk 0:03:00.8]} 4... c5 {[%clk 0:02:58]} 5. Bxb4 {[%clk
0:03:00.3]} 5... cxb4 {[%clk 0:02:58.9]} 6. e3 {[%clk 0:03:00.8]} 6... a5 {[%clk
0:02:58.8]} 7. Nbd2 {[%clk 0:03:00.8]} 7... b6 {[%clk 0:02:58.8]} 8. Bd3 {[%clk
0:03:01]} 8... Bb7 {[%clk 0:02:59.2]} 9. e4 {[%clk 0:03:01.1]} 9... d6 {[%clk
0:02:59.2]} 10. O-O {[%clk 0:03:01.1]} 10... O-O {[%clk 0:02:59]} 11. Re1 {[%clk
0:03:01.5]} 11... Nc6 {[%clk 0:02:59.1]} 12. Nf1 {[%clk 0:03:01.5]} 12... e5
{[%clk 0:02:59.5]} 13. Ng3 {[%clk 0:03:01.7]} 13... g6 {[%clk 0:02:59.5]} 14.
Qd2 {[%clk 0:03:01.9]} 14... Nd7 {[%clk 0:02:57]} 15. Bc2 {[%clk 0:02:58.8]}
15... Qf6 {[%clk 0:02:55.9]} 16. Ba4 {[%clk 0:02:55.3]} 16... Rad8 {[%clk
0:02:34.3]} 17. Rad1 {[%clk 0:02:30.5]} 17... Qe7 {[%clk 0:02:24.8]} 18. h4
{[%clk 0:02:18.5]} 18... Nf6 {[%clk 0:02:05.4]} 19. Bxc6 {[%clk 0:02:09.5]}
19... Bxc6 {[%clk 0:02:06.3]} 20. Qg5 {[%clk 0:02:09.9]} 20... Kh8 {[%clk
0:01:39.5]} 21. dxe5 {[%clk 0:01:50.6]} 21... dxe5 {[%clk 0:01:40.4]} 22. Nxe5
{[%clk 0:01:51.2]} 22... Rxd1 {[%clk 0:01:35.3]} 23. Rxd1 {[%clk 0:01:50.5]}
23... Be8 {[%clk 0:01:32.7]} 24. Ng4 {[%clk 0:01:39.6]} 24... Ng8 {[%clk
0:01:32.1]} 25. Qxe7 {[%clk 0:01:32.6]} 25... Nxe7 {[%clk 0:01:33]} 26. Nf6
{[%clk 0:01:33.2]} 26... Kg7 {[%clk 0:01:31]} 27. e5 {[%clk 0:01:31.8]} 27...
Bc6 {[%clk 0:01:30.1]} 28. f3 {[%clk 0:01:28]} 28... Rc8 {[%clk 0:01:30.5]} 29.
b3 {[%clk 0:01:27.5]} 29... h6 {[%clk 0:01:10.1]} 30. Kf2 {[%clk 0:01:11.4]}
30... b5 {[%clk 0:01:07.9]} 31. Rd4 {[%clk 0:01:10.9]} 31... bxc4 {[%clk
0:01:07.5]} 32. Rxc4 {[%clk 0:01:10.9]} 32... Rd8 {[%clk 0:01:07.3]} 33. Nge4
{[%clk 0:00:52.8]} 33... Bxe4 {[%clk 0:01:04.4]} 34. Nxe4 {[%clk 0:00:53]} 34...
Nf5 {[%clk 0:00:58.8]} 35. Rc7 {[%clk 0:00:37]} 35... a4 {[%clk 0:00:41.7]} 36.
e6 {[%clk 0:00:34.8]} 36... Nd6 {[%clk 0:00:22.4]} 37. Nxd6 {[%clk 0:00:27.6]}
37... Rxd6 {[%clk 0:00:23.3]} 38. e7 {[%clk 0:00:28.2]} 38... Re6 {[%clk
0:00:21.3]} 39. bxa4 {[%clk 0:00:28.8]} 39... Kf6 {[%clk 0:00:19.1]} 40. Rc6
{[%clk 0:00:28.9]} 40... Kxe7 {[%clk 0:00:16.7]} 41. Rxe6+ {[%clk 0:00:29.1]}
41... Kxe6 {[%clk 0:00:17.6]} 42. Ke3 {[%clk 0:00:29.8]} 42... Kd5 {[%clk
0:00:18]} 43. Kd3 {[%clk 0:00:18.6]} 43... Kc5 {[%clk 0:00:11.1]} 44. Kc2 {[%clk
0:00:18.7]} 44... Kc4 {[%clk 0:00:08.1]} 45. Kb2 {[%clk 0:00:19.1]} 45... f5
{[%clk 0:00:07.7]} 46. f4 {[%clk 0:00:18]} 46... Kd4 {[%clk 0:00:04.4]} 47. Kb3
{[%clk 0:00:17.5]} 47... Kc5 {[%clk 0:00:05.1]} 48. a5 {[%clk 0:00:15.8]} 48...
Kb5 {[%clk 0:00:05.4]} 49. a6 {[%clk 0:00:16.5]} 49... Kxa6 {[%clk 0:00:06.3]}
50. Kxb4 {[%clk 0:00:17.2]} 50... Kb6 {[%clk 0:00:07.2]} 51. Kc4 {[%clk
0:00:17.8]} 51... g5 {[%clk 0:00:08.1]} 52. fxg5 {[%clk 0:00:17.6]} 52... hxg5
{[%clk 0:00:09]} 53. hxg5 {[%clk 0:00:18.5]} 53... Kc6 {[%clk 0:00:09.9]} 54. g6
{[%clk 0:00:19]} 54... Kd6 {[%clk 0:00:10.8]} 55. a4 {[%clk 0:00:19.2]} 55...
Ke5 {[%clk 0:00:11.7]} 56. a5 {[%clk 0:00:19.7]} 56... Kf4 {[%clk 0:00:12.6]}
57. g7 {[%clk 0:00:19.4]} 57... Kg3 {[%clk 0:00:13.5]} 58. g8=Q+ {[%clk
0:00:20.3]} 58... Kf2 {[%clk 0:00:14]} 59. a6 {[%clk 0:00:20.9]} 59... f4 {[%clk
0:00:14.9]} 60. a7 {[%clk 0:00:21.6]} 60... Kg1 {[%clk 0:00:15.8]} 61. a8=Q
{[%clk 0:00:21.7]} 61... Kh1 {[%clk 0:00:16.7]} 62. g3+ {[%clk 0:00:20.7]} 62...
Kg1 {[%clk 0:00:17.6]} 63. gxf4+ {[%clk 0:00:20.9]} 1-0

[Event "Late-Titled-Tuesday-Blitz-October-03-2023"]
[Site "Chess.com"]
[Date "2023.10.03"]
[Round "6"]
[White "HajiyevKanan"]
[Black "maracayo"]
[Result "1-0"]
[WhiteElo "2546"]
[BlackElo "2405"]
[TimeControl "180+1"]
[EndTime "15:04:54 PDT"]
[Termination "HajiyevKanan won on time"]

1. d4 {[%clk 0:03:00.9]} 1... d6 {[%clk 0:02:59.9]} 2. Nf3 {[%clk 0:03:00.8]}
2... Nf6 {[%clk 0:02:59.9]} 3. g3 {[%clk 0:03:01.4]} 3... Nbd7 {[%clk
0:02:59.9]} 4. Bg2 {[%clk 0:03:02.1]} 4... e5 {[%clk 0:03:00.2]} 5. O-O {[%clk
0:03:02.6]} 5... Be7 {[%clk 0:03:00.4]} 6. c4 {[%clk 0:03:03.2]} 6... O-O {[%clk
0:03:00]} 7. b3 {[%clk 0:03:03.9]} 7... c6 {[%clk 0:02:58.9]} 8. Ne1 {[%clk
0:02:43.3]} 8... Re8 {[%clk 0:02:49.4]} 9. Bb2 {[%clk 0:02:37.3]} 9... Qc7
{[%clk 0:02:45.4]} 10. Nc3 {[%clk 0:02:33]} 10... Bf8 {[%clk 0:02:37.8]} 11. e4
{[%clk 0:02:26.1]} 11... exd4 {[%clk 0:02:30.4]} 12. Qxd4 {[%clk 0:02:27]} 12...
a6 {[%clk 0:02:25]} 13. Rd1 {[%clk 0:02:25.9]} 13... b5 {[%clk 0:02:14.8]} 14.
cxb5 {[%clk 0:02:22.6]} 14... axb5 {[%clk 0:02:14.5]} 15. a4 {[%clk 0:02:22.6]}
15... b4 {[%clk 0:02:06.4]} 16. Qxb4 {[%clk 0:02:16.5]} 16... Ba6 {[%clk
0:01:59.3]} 17. Nd3 {[%clk 0:02:12.3]} 17... d5 {[%clk 0:01:55.1]} 18. Qd4
{[%clk 0:02:02.7]} 18... c5 {[%clk 0:01:54.2]} 19. Nxd5 {[%clk 0:01:54.5]} 19...
Nxd5 {[%clk 0:01:53.4]} 20. Qxd5 {[%clk 0:01:53.7]} 20... Nb6 {[%clk 0:01:50.3]}
21. Qg5 {[%clk 0:01:39.4]} 21... c4 {[%clk 0:01:41.9]} 22. bxc4 {[%clk
0:01:39.7]} 22... Nxc4 {[%clk 0:01:40.3]} 23. Ba1 {[%clk 0:01:26.3]} 23... h6
{[%clk 0:01:26.4]} 24. Qc1 {[%clk 0:01:25.7]} 24... Qa5 {[%clk 0:01:21.4]} 25.
Rfe1 {[%clk 0:00:35.8]} 25... Rac8 {[%clk 0:01:15.3]} 26. Nb2 {[%clk 0:00:29.6]}
26... Ba3 {[%clk 0:01:04.3]} 27. Nxc4 {[%clk 0:00:28.1]} 27... Qxe1+ {[%clk
0:00:59.3]} 28. Rxe1 {[%clk 0:00:24.3]} 28... Bxc1 {[%clk 0:01:00.2]} 29. Nd6
{[%clk 0:00:21.4]} 29... Bd2 {[%clk 0:00:50.8]} 30. Rd1 {[%clk 0:00:21.6]} 30...
Bb4 {[%clk 0:00:29.4]} 31. Nxe8 {[%clk 0:00:18.6]} 31... Rxe8 {[%clk 0:00:28.7]}
32. e5 {[%clk 0:00:13.8]} 32... Be2 {[%clk 0:00:26.3]} 33. Rd7 {[%clk
0:00:10.1]} 33... Bg4 {[%clk 0:00:23.9]} 34. Rb7 {[%clk 0:00:09]} 34... Bc5
{[%clk 0:00:23.3]} 35. Bd5 {[%clk 0:00:07.5]} 35... Rd8 {[%clk 0:00:22.4]} 36.
Bxf7+ {[%clk 0:00:06.6]} 36... Kh7 {[%clk 0:00:22.7]} 37. Kg2 {[%clk 0:00:05.6]}
37... Rd2 {[%clk 0:00:22.1]} 38. Rb2 {[%clk 0:00:05.7]} 38... Rd1 {[%clk
0:00:19.6]} 39. Ra2 {[%clk 0:00:06.3]} 39... Bf5 {[%clk 0:00:17.1]} 40. e6
{[%clk 0:00:05.2]} 40... Be4+ {[%clk 0:00:17]} 41. f3 {[%clk 0:00:05.8]} 41...
Rg1+ {[%clk 0:00:16.6]} 42. Kh3 {[%clk 0:00:06.4]} 42... Bd5 {[%clk 0:00:15.3]}
43. Re2 {[%clk 0:00:05]} 43... g5 {[%clk 0:00:15.9]} 44. Bh5 {[%clk 0:00:03.4]}
44... Bxe6+ {[%clk 0:00:15.3]} 45. Rxe6 {[%clk 0:00:02.9]} 45... Rxa1 {[%clk
0:00:16.1]} 46. Bg4 {[%clk 0:00:03.2]} 46... Rxa4 {[%clk 0:00:14.9]} 47. Rc6
{[%clk 0:00:03.9]} 47... Bd4 {[%clk 0:00:13.4]} 48. Bf5+ {[%clk 0:00:04.4]}
48... Kg7 {[%clk 0:00:12.5]} 49. Rg6+ {[%clk 0:00:04.7]} 49... Kf7 {[%clk
0:00:13]} 50. Rxh6 {[%clk 0:00:05.3]} 50... Ra3 {[%clk 0:00:11.9]} 51. Be4
{[%clk 0:00:05]} 51... Bg1 {[%clk 0:00:10.7]} 52. Kg4 {[%clk 0:00:04.4]} 52...
Be3 {[%clk 0:00:05.8]} 53. Rh7+ {[%clk 0:00:02.9]} 53... Kg8 {[%clk 0:00:05.6]}
54. Rh6 {[%clk 0:00:03.4]} 54... Kg7 {[%clk 0:00:04.1]} 55. Rg6+ {[%clk
0:00:04]} 55... Kf7 {[%clk 0:00:04.5]} 56. Rc6 {[%clk 0:00:04.4]} 1-0